fUST/lending_fUST_20250630
["ID","MTS","AMOUNT","RATE_DAILY","PERIOD"]
[368610834,1751235049952,-151.0,0.00020852,2]
[368610835,1751235049961,-0.76323788,0.00020852,2]
[368610836,1751235050196,-150.23676212,0.00020852,2]
[368610837,1751235050207,-151.0,0.00020852,2]
[368610838,1751235050220,-151.0,0.00020852,2]
[368610839,1751235050234,-192.117555,0.00020852,2]
[368610840,1751235050246,-192.117555,0.00020852,2]
[368610841,1751235050256,-151.0,0.00020852,2]
[368610842,1751235050267,-151.0,0.00020852,2]
[368610843,1751235050279,-14.42952364,0.00020852,2]
[368610844,1751235050534,-0.00499722,0.00020852,2]
[368610845,1751235050601,-460.0,0.00018323,2]
[368610846,1751235050613,-460.0,0.00018596,2]
[368610847,1751235050624,-460.0,0.0001887,2]
[368610848,1751235050635,-159.291355,0.000191,2]
[368610849,1751235050647,-460.0,0.00019144,2]
[368610850,1751235050658,-136.56547914,0.00020852,2]
[368610851,1751235050670,-151.0,0.00020852,2]
[368610852,1751235050681,-500.0,0.00020852,2]
[368610853,1751235050692,-500.0,0.00020852,2]
[368610854,1751235050703,-456.652963,0.00020852,2]
[368610855,1751235050715,-151.0,0.00020852,2]
[368610856,1751235050726,-456.652963,0.00020852,2]
[368610857,1751235050737,-500.0,0.00020852,2]
[368610858,1751235050749,-255.618464,0.00020852,2]
[368610859,1751235050761,-255.618464,0.00020852,2]
[368610860,1751235050772,-507.15952276,0.00020869,2]
[368610861,1751235050784,-500.0,0.00020869,2]
[368610862,1751235050796,-366.235562,0.00020877,2]
[368610863,1751235050809,-366.235562,0.00020877,2]
[368610864,1751235050820,-366.235562,0.00020877,2]
[368610865,1751235050830,-153.0,0.00020877,2]
[368610866,1751235050840,-153.0,0.00020877,2]
[368610867,1751235050849,-153.0,0.00020877,2]
[368610868,1751235050858,-153.0,0.00020877,2]
[368610869,1751235050867,-151.0,0.00020879,2]
[368610870,1751235050879,-500.0,0.00020879,2]
[368610871,1751235050889,-500.0,0.00020879,2]
[368610872,1751235050898,-500.0,0.00020879,2]
[368610873,1751235050907,-151.0,0.00020879,2]
[368610874,1751235050916,-151.0,0.00020879,2]
[368610875,1751235050926,-623.16222439,0.00020879,2]
[368610876,1751235050936,-151.0,0.00020879,2]
[368610877,1751235050945,-151.0,0.00020879,2]
[368610878,1751235050955,-500.0,0.00020879,2]
[368610879,1751235050965,-500.0,0.00020879,2]
[368610880,1751235050975,-500.0,0.00020879,2]
[368610881,1751235050984,-206.34393344,0.00020879,2]
[368610882,1751235050993,-151.0,0.00020879,2]
[368610883,1751235051002,-151.0,0.00020879,2]
[368610884,1751235051012,-198.0,0.00020879,2]
[368610885,1751235051021,-198.0,0.00020879,2]
[368610886,1751235051031,-500.0,0.00020879,2]
[368610887,1751235051040,-500.0,0.00020879,2]
[368610888,1751235051049,-151.0,0.00020879,2]
[368610889,1751235051059,-198.0,0.00020879,2]
[368610890,1751235051069,-500.0,0.00020879,2]
[368610891,1751235051080,-492.02162087,0.00020879,2]
[368610892,1751235051089,-500.0,0.00020879,2]
[368610893,1751235051099,-185.748531,0.00020886,2]
[368610894,1751235051108,-185.748531,0.00020886,2]
[368610895,1751235051117,-151.0,0.00020907,2]
[368610896,1751235051127,-500.0,0.00020907,2]
[368610897,1751235051137,-500.0,0.00020907,2]
[368610898,1751235051146,-500.0,0.00020907,2]
[368610899,1751235051155,-198.0,0.00020907,2]
[368610900,1751235051164,-263.16270588,0.00020907,2]
[368610901,1751235051173,-151.0,0.00020907,2]
[368610902,1751235051182,-500.0,0.00020907,2]
[368610903,1751235051192,-500.0,0.00020907,2]
[368610904,1751235051201,-500.0,0.00020907,2]
[368610905,1751235051210,-151.0,0.00020907,2]
[368610906,1751235051219,-151.0,0.00020907,2]
[368610907,1751235051229,-279.6042664,0.00020907,2]
[368610908,1751235051238,-151.0,0.00020907,2]
[368610909,1751235051477,-151.0,0.00020907,2]
[368610910,1751235051491,-500.0,0.00020907,2]
[368610911,1751235051500,-500.0,0.00020907,2]
[368610912,1751235051509,-170.316221,0.00020918,4]
[368610913,1751235051519,-151.0,0.00020934,2]
[368610914,1751235051528,-151.0,0.00020934,2]
[368610915,1751235051537,-1701.693219,0.00020934,2]
[368610916,1751235051546,-1701.693219,0.00020934,2]
[368610917,1751235051555,-151.0,0.00020934,2]
[368610918,1751235051564,-316.98735537,0.00020934,2]
[368610919,1751235051573,-604.0,0.00020934,2]
[368610920,1751235051583,-500.0,0.00020934,2]
[368610921,1751235051591,-151.0,0.00020934,2]
[368610922,1751235051600,-453.0,0.00020934,2]
[368610923,1751235051610,-500.0,0.00020934,2]
[368610924,1751235051619,-500.0,0.00020934,2]
[368610925,1751235051628,-151.0,0.00020934,2]
[368610926,1751235051638,-151.0,0.00020934,2]
[368610927,1751235051648,-151.0,0.00020934,2]
[368610928,1751235051657,-500.0,0.00020934,2]
[368610929,1751235051666,-500.0,0.00020934,2]
[368610930,1751235051675,-4168.82108962,0.00020934,4]
[368610931,1751235051684,-277.59773754,0.00020947,2]
[368610932,1751235051697,-222.40226246,0.00020947,2]
[368610933,1751235051706,-151.0,0.00020962,2]
[368610934,1751235051715,-302.0,0.00020962,2]
[368610935,1751235051724,-230.46578051,0.00020962,2]
[368610936,1751235051734,-500.0,0.00020962,2]
[368610937,1751235051743,-500.0,0.00020962,2]
[368610938,1751235051752,-297.37074311,0.00020962,2]
[368610939,1751235051761,-221.08082616,0.00020962,2]
[368610940,1751235051770,-198.0,0.00020962,2]
[368610941,1751235051779,-500.0,0.00020962,2]
[368610942,1751235051788,-500.0,0.00020962,2]
[368610943,1751235051798,-199.19616753,0.00020989,2]
[368610944,1751235051811,-560.09503508,0.00020989,2]
[368610945,1751235051821,-500.0,0.00020989,2]
[368610946,1751235051830,-500.0,0.00020989,2]
[368610947,1751235051839,-500.0,0.00020989,2]
[368610948,1751235051850,-22488.27352,0.00020999,2]
[368610949,1751235051859,-2240.56,0.00021,2]
[368610950,1751235051869,-22685.67329421,0.00021,2]
[368610951,1751235051878,-151.0,0.00021,2]
[368610952,1751235051888,-151.0,0.00021,2]
[368610953,1751235051898,-294.548045,0.00021,2]
[368610954,1751235051907,-294.548045,0.00021,2]
[368610955,1751235051916,-413.864626,0.00021,2]
[368610956,1751235051925,-413.864626,0.00021,2]
[368610957,1751235051934,-203.298151,0.00021,2]
[368610958,1751235051944,-203.298151,0.00021,2]
[368610959,1751235051953,-1430.615471,0.00021,2]
[368610960,1751235051962,-1430.615471,0.00021,2]
[368610961,1751235051971,-151.0,0.00021,2]
[368610962,1751235051981,-1043.682244,0.00021,2]
[368610963,1751235051990,-1043.682244,0.00021,2]
[368610964,1751235052000,-772.5707,0.00021,2]
[368610965,1751235052009,-772.5707,0.00021,2]
[368610966,1751235052018,-1426.974411,0.00021,2]
[368610967,1751235052028,-1426.974411,0.00021,2]
[368610968,1751235052037,-151.0,0.00021,2]
[368610969,1751235052046,-238.734006,0.00021,2]
[368610970,1751235052055,-238.734006,0.00021,2]
[368610971,1751235052065,-1928.085873,0.00021,2]
[368610972,1751235052074,-1928.085873,0.00021,2]
[368610973,1751235052083,-151.0,0.00021,2]
[368610974,1751235052092,-151.0,0.00021013,2]
[368610975,1751235052101,-151.0,0.00021013,2]
[368610976,1751235052111,-500.0,0.00021016,2]
[368610977,1751235052120,-500.0,0.00021016,2]
[368610978,1751235052130,-500.0,0.00021016,2]
[368610979,1751235052139,-500.0,0.00021044,2]
[368610980,1751235052148,-500.0,0.00021044,2]
[368610981,1751235052157,-302.0,0.00021044,2]
[368610982,1751235052166,-460.0,0.00021062,2]
[368610983,1751235052176,-460.0,0.00021062,2]
[368610984,1751235052186,-1457.24,0.00021062,2]
[368610985,1751235052195,-151.0,0.00021063,2]
[368610986,1751235052204,-151.0,0.00021063,2]
[368610987,1751235052214,-151.0,0.00021063,2]
[368610988,1751235052223,-151.0,0.00021063,2]
[368610989,1751235052232,-151.0,0.00021063,2]
[368610990,1751235052241,-262.226419,0.00021063,2]
[368610991,1751235052250,-262.226419,0.00021063,2]
[368610992,1751235052260,-2032.3,0.00021063,2]
[368610993,1751235052269,-1565.73,0.00021063,2]
[368610994,1751235052279,-2450.2,0.00021063,2]
[368610995,1751235052288,-1188.68,0.00021063,2]
[368610996,1751235052297,-460.0,0.00021063,2]
[368610997,1751235052306,-460.76,0.00021063,2]
[368610998,1751235052315,-460.0,0.00021063,2]
[368610999,1751235052324,-460.0,0.00021063,2]
[368611000,1751235052333,-198.95690601,0.00021063,2]
[368611001,1751235052343,-612.49,0.00021063,2]
[368611002,1751235052353,-2357.05,0.00021063,2]
[368611003,1751235052362,-460.0,0.00021063,2]
[368611004,1751235052371,-2202.17,0.00021063,2]
[368611005,1751235052381,-656.98,0.00021063,2]
[368611006,1751235052390,-2553.27,0.00021063,2]
[368611007,1751235052399,-374.534851,0.00021063,2]
[368611008,1751235052408,-374.534851,0.00021063,2]
[368611009,1751235052417,-460.0,0.00021063,2]
[368611010,1751235052426,-1017.95,0.00021063,2]
[368611011,1751235052435,-1117.64,0.00021063,2]
[368611012,1751235052444,-827.33,0.00021063,2]
[368611013,1751235052453,-460.0,0.00021063,2]
[368611014,1751235052462,-460.0,0.00021063,2]
[368611015,1751235052472,-1073.37,0.00021063,2]
[368611016,1751235052481,-150.0,0.00021064,2]
[368611017,1751235052491,-150.0,0.00021064,2]
[368611018,1751235052500,-151.0,0.00021064,2]
[368611019,1751235052509,-151.0,0.00021064,2]
[368611020,1751235052518,-460.0,0.00021064,2]
[368611021,1751235052527,-467.07,0.00021064,2]
[368611022,1751235052536,-609.95,0.00021064,2]
[368611023,1751235052545,-603.18,0.00021064,2]
[368611024,1751235052554,-151.0,0.00021064,2]
[368611025,1751235052563,-151.0,0.00021064,2]
[368611026,1751235052572,-460.0,0.00021064,2]
[368611027,1751235052581,-489.51,0.00021064,2]
[368611028,1751235052590,-151.0,0.00021064,2]
[368611029,1751235052599,-151.0,0.00021064,2]
[368611030,1751235052608,-460.0,0.00021064,2]
[368611031,1751235052618,-460.0,0.00021064,2]
[368611032,1751235052627,-192.117555,0.00021064,2]
[368611033,1751235052636,-2884.44,0.00021064,2]
[368611034,1751235052645,-192.117555,0.00021064,2]
[368611035,1751235052654,-456.652963,0.00021064,2]
[368611036,1751235052663,-456.652963,0.00021064,2]
[368611037,1751235052672,-950.73,0.00021064,2]
[368611038,1751235052682,-462.1,0.00021064,2]
[368611039,1751235052691,-610.49,0.00021064,2]
[368611040,1751235052699,-255.618464,0.00021064,2]
[368611041,1751235052709,-255.618464,0.00021064,2]
[368611042,1751235052717,-954.77,0.00021064,2]
[368611043,1751235052726,-503.3,0.00021065,2]
[368611044,1751235052736,-460.0,0.00021066,2]
[368611045,1751235052745,-151.0,0.00021067,2]
[368611046,1751235052754,-843.582793,0.00021067,2]
[368611047,1751235052764,-843.582793,0.00021067,2]
[368611048,1751235052773,-151.0,0.00021067,2]
[368611049,1751235052783,-215.0738,0.00021068,2]
[368611050,1751235052793,-1198.0,0.00021069,2]
[368611051,1751235052805,-500.0,0.00021071,2]
[368611052,1751235052814,-349.0,0.00021071,2]
[368611053,1751235052824,-800.0,0.00021073,2]
[368611054,1751235052834,-12500.0,0.00021077,2]
[368611055,1751235052843,-151.0,0.00021078,2]
[368611056,1751235052853,-185.748531,0.00021078,2]
[368611057,1751235052862,-185.748531,0.00021078,2]
[368611058,1751235052873,-800.0,0.00021079,2]
[368611059,1751235052883,-1726.060106,0.0002108,5]
[368611060,1751235052892,-800.0,0.0002108,2]
[368611061,1751235052901,-1998.95653615,0.0002108,2]
[368611062,1751235052911,-12500.0,0.00021086,2]
[368611063,1751235052920,-800.0,0.0002109,2]
[368611064,1751235052929,-12500.0,0.00021095,2]
[368611065,1751235052938,-800.0,0.00021095,2]
[368611066,1751235052947,-1562.25,0.00021095,2]
[368611067,1751235052956,-460.0,0.00021095,2]
[368611068,1751235052966,-2365.94913893,0.00021095,2]
[368611069,1751235052975,-1232.26,0.00021095,2]
[368611070,1751235052984,-3609.43,0.00021095,2]
[368611071,1751235052994,-1161.31,0.00021095,2]
[368611072,1751235053003,-195.87991591,0.00021096,2]
[368611073,1751235053013,-800.0,0.00021097,2]
[368611074,1751235053022,-500.0,0.00021099,2]
[368611075,1751235053031,-151.0,0.000211,2]
[368611076,1751235053041,-1000.0,0.000211,5]
[368611077,1751235053050,-800.0,0.00021102,2]
[368611078,1751235053059,-4168.82108962,0.00021107,4]
[368611079,1751235053069,-151.0,0.00021107,2]
[368611080,1751235053078,-800.0,0.0002111,2]
[368611081,1751235053088,-1000.0,0.0002112,5]
[368611082,1751235053098,-800.0,0.00021121,2]
[368611083,1751235053107,-800.0,0.00021123,2]
[368611084,1751235053117,-500.0,0.00021126,2]
[368611085,1751235053127,-800.0,0.00021129,2]
[368611086,1751235053136,-800.0,0.00021133,2]
[368611087,1751235053146,-800.0,0.00021138,2]
[368611088,1751235053156,-1000.0,0.0002114,5]
[368611089,1751235053165,-642.0,0.00021153,2]
[368611090,1751235053175,-1000.0,0.0002116,5]
[368611091,1751235053184,-775.0,0.00021163,2]
[368611092,1751235053193,-1000.0,0.0002118,5]
[368611093,1751235053203,-800.0,0.00021195,2]
[368611094,1751235053213,-151.0,0.000212,4]
[368611095,1751235053222,-1000.0,0.000212,5]
[368611096,1751235053231,-640.0,0.000212,2]
[368611097,1751235053240,-800.0,0.00021217,2]
[368611098,1751235053249,-1000.0,0.0002122,5]
[368611099,1751235053258,-1000.0,0.0002124,5]
[368611100,1751235053268,-800.0,0.00021242,2]
[368611101,1751235053277,-218.10483839,0.00021244,2]
[368611102,1751235053287,-800.0,0.00021254,2]
[368611103,1751235053297,-193.96505387,0.00021257,2]
[368611104,1751235053306,-1000.0,0.0002126,5]
[368611105,1751235053316,-800.0,0.00021273,2]
[368611106,1751235053326,-193.96505387,0.00021275,2]
[368611107,1751235053335,-800.0,0.00021278,2]
[368611108,1751235053345,-151.0,0.00021279,2]
[368611109,1751235053354,-151.0,0.00021279,2]
[368611110,1751235053363,-4168.82108962,0.00021279,5]
[368611111,1751235053373,-1000.0,0.0002128,5]
[368611112,1751235053383,-800.0,0.00021287,2]
[368611113,1751235053392,-193.96505387,0.00021287,2]
[368611114,1751235053401,-606.03494613,0.00021288,2]
[368611115,1751235053410,-1000.0,0.000213,5]
[368611116,1751235053420,-800.0,0.00021318,2]
[368611117,1751235053430,-800.0,0.00021335,2]
[368611118,1751235053439,-460.0,0.00021336,2]
[368611119,1751235053448,-460.0,0.00021336,2]
[368611120,1751235053457,-1457.24,0.00021336,2]
[368611121,1751235053466,-151.0,0.00021337,2]
[368611122,1751235053475,-1928.085873,0.00021337,2]
[368611123,1751235053484,-1928.085873,0.00021337,2]
[368611124,1751235053493,-2032.3,0.00021337,2]
[368611125,1751235053502,-1565.73,0.00021337,2]
[368611126,1751235053512,-2450.2,0.00021337,2]
[368611127,1751235053521,-1188.68,0.00021337,2]
[368611128,1751235053530,-460.0,0.00021337,2]
[368611129,1751235053540,-460.76,0.00021337,2]
[368611130,1751235053550,-460.0,0.00021337,2]
[368611131,1751235053559,-460.0,0.00021337,2]
[368611132,1751235053569,-612.49,0.00021337,2]
[368611133,1751235053578,-2357.05,0.00021337,2]
[368611134,1751235053587,-460.0,0.00021337,2]
[368611135,1751235053596,-2202.17,0.00021337,2]
[368611136,1751235053605,-656.98,0.00021337,2]
[368611137,1751235053615,-2553.27,0.00021337,2]
[368611138,1751235053624,-460.0,0.00021337,2]
[368611139,1751235053633,-1017.95,0.00021337,2]
[368611140,1751235053643,-1117.64,0.00021337,2]
[368611141,1751235053652,-827.33,0.00021337,2]
[368611142,1751235053661,-460.0,0.00021337,2]
[368611143,1751235053671,-460.0,0.00021337,2]
[368611144,1751235053680,-1073.37,0.00021337,2]
[368611145,1751235053689,-460.0,0.00021338,2]
[368611146,1751235053699,-467.07,0.00021338,2]
[368611147,1751235053708,-609.95,0.00021338,2]
[368611148,1751235053718,-603.18,0.00021338,2]
[368611149,1751235053727,-460.0,0.00021338,2]
[368611150,1751235053736,-489.51,0.00021338,2]
[368611151,1751235053745,-151.0,0.00021338,2]
[368611152,1751235053754,-460.0,0.00021338,2]
[368611153,1751235053764,-460.0,0.00021338,2]
[368611154,1751235053772,-192.117555,0.00021338,2]
[368611155,1751235053782,-2884.44,0.00021338,2]
[368611156,1751235053792,-192.117555,0.00021338,2]
[368611157,1751235053804,-950.73,0.00021338,2]
[368611158,1751235053814,-462.1,0.00021338,2]
[368611159,1751235053823,-610.49,0.00021338,2]
[368611160,1751235053832,-954.77,0.00021338,2]
[368611161,1751235053842,-151.0,0.00021339,2]
[368611162,1751235053851,-151.0,0.00021339,2]
[368611163,1751235053860,-151.0,0.00021339,2]
[368611164,1751235053870,-151.0,0.00021339,2]
[368611165,1751235053881,-182.136929,0.00021339,2]
[368611166,1751235053891,-503.3,0.00021339,2]
[368611167,1751235053900,-151.0,0.00021339,2]
[368611168,1751235053910,-151.0,0.00021339,2]
[368611169,1751235053919,-262.226419,0.00021339,2]
[368611170,1751235053928,-151.0,0.00021339,2]
[368611171,1751235053938,-262.226419,0.00021339,2]
[368611172,1751235053947,-175.88482,0.00021339,2]
[368611173,1751235053956,-151.0,0.00021339,2]
[368611174,1751235053967,-374.534851,0.00021339,2]
[368611175,1751235053976,-456.652963,0.00021339,2]
[368611176,1751235053985,-456.652963,0.00021339,2]
[368611177,1751235053994,-374.534851,0.00021339,2]
[368611178,1751235054004,-255.618464,0.00021339,2]
[368611179,1751235054014,-255.618464,0.00021339,2]
[368611180,1751235054023,-151.0,0.0002134,2]
[368611181,1751235054033,-151.0,0.0002134,2]
[368611182,1751235054042,-1701.693219,0.0002134,2]
[368611183,1751235054051,-1701.693219,0.0002134,2]
[368611184,1751235054060,-460.0,0.0002134,2]
[368611185,1751235054070,-500.0,0.0002134,2]
[368611186,1751235054079,-500.0,0.0002134,2]
[368611187,1751235054089,-5000.0,0.00021343,2]
[368611188,1751235054098,-151.0,0.00021345,2]
[368611189,1751235054108,-184.788545,0.00021345,2]
[368611190,1751235054118,-1562.25,0.00021369,2]
[368611191,1751235054129,-460.0,0.00021369,2]
[368611192,1751235054138,-1232.26,0.00021369,2]
[368611193,1751235054147,-3609.43,0.00021369,2]
[368611194,1751235054157,-1161.31,0.00021369,2]
[368611195,1751235054166,-2500.0,0.00021378,2]
[368611196,1751235054178,-854.06163931,0.00021378,2]
[368611197,1751235054188,-2200.0,0.0002138,2]
[368611198,1751235054197,-1490.29807009,0.00021398,4]
[368611199,1751235054207,-151.0,0.000214,3]
[368611200,1751235054216,-19742.72723519,0.00021405,2]
[368611201,1751235054225,-185.748531,0.00021405,2]
[368611202,1751235054234,-185.748531,0.00021405,2]
[368611203,1751235054244,-4168.82108962,0.00021452,5]
[368611204,1751235054253,-154.11989219,0.00021452,2]
[368611205,1751235054262,-151.0,0.00021452,2]
[368611206,1751235054271,-151.0,0.00021464,5]
[368611207,1751235054280,-624.67088142,0.00021492,2]
[368611208,1751235054289,-151.0,0.000215,2]
[368611209,1751235054299,-151.0,0.000215,2]
[368611210,1751235054308,-151.0,0.000216,2]
[368611211,1751235054317,-1284.6937,0.000216,2]
[368611212,1751235054326,-460.0,0.0002161,2]
[368611213,1751235054335,-460.0,0.0002161,2]
[368611214,1751235054344,-1457.24,0.0002161,2]
[368611215,1751235054353,-2032.3,0.00021611,2]
[368611216,1751235054363,-1565.73,0.00021611,2]
[368611217,1751235054372,-2450.2,0.00021611,2]
[368611218,1751235054381,-1188.68,0.00021611,2]
[368611219,1751235054390,-460.0,0.00021611,2]
[368611220,1751235054400,-460.76,0.00021611,2]
[368611221,1751235054409,-460.0,0.00021611,2]
[368611222,1751235054419,-460.0,0.00021611,2]
[368611223,1751235054429,-612.49,0.00021611,2]
[368611224,1751235054438,-2357.05,0.00021611,2]
[368611225,1751235054447,-460.0,0.00021611,2]
[368611226,1751235054456,-2202.17,0.00021611,2]
[368611227,1751235054466,-656.98,0.00021611,2]
[368611228,1751235054475,-2553.27,0.00021611,2]
[368611229,1751235054484,-460.0,0.00021611,2]
[368611230,1751235054494,-1017.95,0.00021611,2]
[368611231,1751235054503,-1117.64,0.00021611,2]
[368611232,1751235054512,-827.33,0.00021611,2]
[368611233,1751235054521,-460.0,0.00021611,2]
[368611234,1751235054530,-460.0,0.00021611,2]
[368611235,1751235054539,-1073.37,0.00021611,2]
[368611236,1751235054549,-460.0,0.00021612,2]
[368611237,1751235054559,-467.07,0.00021612,2]
[368611238,1751235054568,-609.95,0.00021612,2]
[368611239,1751235054578,-603.18,0.00021612,2]
[368611240,1751235054587,-460.0,0.00021612,2]
[368611241,1751235054597,-489.51,0.00021612,2]
[368611242,1751235054606,-460.0,0.00021612,2]
[368611243,1751235054615,-460.0,0.00021612,2]
[368611244,1751235054625,-2884.44,0.00021612,2]
[368611245,1751235054634,-950.73,0.00021612,2]
[368611246,1751235054644,-462.1,0.00021612,2]
[368611247,1751235054653,-610.49,0.00021612,2]
[368611248,1751235054662,-954.77,0.00021612,2]
[368611249,1751235054671,-164.821234,0.00021613,2]
[368611250,1751235054680,-413.864626,0.00021613,2]
[368611251,1751235054689,-413.864626,0.00021613,2]
[368611252,1751235054698,-1430.615471,0.00021613,2]
[368611253,1751235054708,-1430.615471,0.00021613,2]
[368611254,1751235054717,-151.0,0.00021613,2]
[368611255,1751235054727,-151.0,0.00021613,2]
[368611256,1751235054736,-772.5707,0.00021613,2]
[368611257,1751235054745,-772.5707,0.00021613,2]
[368611258,1751235054754,-503.3,0.00021613,2]
[368611259,1751235054763,-151.0,0.00021613,2]
[368611260,1751235054773,-238.734006,0.00021613,2]
[368611261,1751235054782,-238.734006,0.00021613,2]
[368611262,1751235054793,-1928.085873,0.00021613,2]
[368611263,1751235054924,-1928.085873,0.00021613,2]
[368611264,1751235054934,-151.0,0.00021613,2]
[368611265,1751235054944,-192.117555,0.00021613,2]
[368611266,1751235054953,-192.117555,0.00021613,2]
[368611267,1751235054964,-460.0,0.00021614,2]
[368611268,1751235054974,-480.643099,0.00021615,2]
[368611269,1751235054983,-480.643099,0.00021615,2]
[368611270,1751235054993,-488.79996,0.00021615,2]
[368611271,1751235055002,-488.79996,0.00021615,2]
[368611272,1751235055012,-294.548045,0.00021615,2]
[368611273,1751235055021,-294.548045,0.00021615,2]
[368611274,1751235055031,-203.298151,0.00021615,2]
[368611275,1751235055041,-203.298151,0.00021615,2]
[368611276,1751235055050,-1043.682244,0.00021615,2]
[368611277,1751235055059,-1043.682244,0.00021615,2]
[368611278,1751235055072,-600.0,0.00021615,2]
[368611279,1751235055087,-600.0,0.00021615,2]
[368611280,1751235055097,-206.46127212,0.00021615,2]
[368611281,1751235055107,-600.0,0.00021615,2]
[368611282,1751235055116,-360.0,0.00021615,2]
[368611283,1751235055126,-420.0,0.00021615,2]
[368611284,1751235055135,-252.0,0.00021615,2]
[368611285,1751235055150,-168.0,0.00021615,2]
[368611286,1751235055159,-284.97360433,0.00021615,2]
[368611287,1751235055169,-260.51607077,0.00021615,2]
[368611288,1751235055178,-600.0,0.00021615,2]
[368611289,1751235055188,-445.4920813,0.00021615,2]
[368611290,1751235055197,-296.99472087,0.00021615,2]
[368611291,1751235055207,-464.05425135,0.00021615,2]
[368611292,1751235055216,-278.43255081,0.00021615,2]
[368611293,1751235055226,-151.0,0.00021616,2]
[368611294,1751235055235,-151.0,0.00021616,2]
[368611295,1751235055245,-151.0,0.00021616,2]
[368611296,1751235055254,-151.0,0.00021616,2]
[368611297,1751235055263,-151.0,0.00021616,2]
[368611298,1751235055273,-151.0,0.00021616,2]
[368611299,1751235055282,-1768.116451,0.00021616,2]
[368611300,1751235055291,-1768.116451,0.00021616,2]
[368611301,1751235055301,-1858.456546,0.00021616,2]
[368611302,1751235055310,-1858.456546,0.00021616,2]
[368611303,1751235055320,-1426.974411,0.00021616,2]
[368611304,1751235055330,-1426.974411,0.00021616,2]
[368611305,1751235055339,-151.0,0.00021616,2]
[368611306,1751235055349,-263.331457,0.00021616,2]
[368611307,1751235055358,-151.0,0.00021616,2]
[368611308,1751235055368,-288.616316,0.00021616,2]
[368611309,1751235055377,-262.226419,0.00021616,2]
[368611310,1751235055386,-151.0,0.00021616,2]
[368611311,1751235055396,-262.226419,0.00021616,2]
[368611312,1751235055405,-151.0,0.00021616,2]
[368611313,1751235055414,-374.534851,0.00021616,2]
[368611314,1751235055424,-456.652963,0.00021616,2]
[368611315,1751235055434,-456.652963,0.00021616,2]
[368611316,1751235055443,-374.534851,0.00021616,2]
[368611317,1751235055454,-255.618464,0.00021616,2]
[368611318,1751235055463,-255.618464,0.00021616,2]
[368611319,1751235055473,-151.0,0.00021618,2]
[368611320,1751235055482,-151.0,0.00021618,2]
[368611321,1751235055491,-151.0,0.00021621,2]
[368611322,1751235055500,-151.0,0.00021621,2]
[368611323,1751235055509,-151.0,0.00021621,2]
[368611324,1751235055519,-151.0,0.00021624,2]
[368611325,1751235055528,-151.0,0.00021624,2]
[368611326,1751235055537,-151.0,0.00021624,2]
[368611327,1751235055548,-4168.82108962,0.00021624,5]
[368611328,1751235055557,-775.0,0.00021632,2]
[368611329,1751235055567,-390.77410615,0.00021632,2]
[368611330,1751235055577,-600.0,0.00021632,2]
[368611331,1751235055587,-600.0,0.00021632,2]
[368611332,1751235055596,-600.0,0.00021632,2]
[368611333,1751235055606,-600.0,0.00021632,2]